[Event "*** Titled Tuesday Blitz"]
[Site "Chess.com"]
[Date "2020.11.03"]
[Round "4"]
[White "shnitez"]
[Black "BabyFacedAssasin"]
[Result "1-0"]
[WhiteElo "2532"]
[BlackElo "2250"]
[TimeControl "180+1"]
[EndTime "10:44:23 PST"]
[Termination "shnitez won by resignation"]

1. e4 {[%clk 0:03:00.9]} 1... c5 {[%clk 0:02:57.8]} 2. Nf3 {[%clk 0:02:56.1]}
2... d6 {[%clk 0:02:57.7]} 3. Bb5+ {[%clk 0:02:54.9]} 3... Bd7 {[%clk
0:02:55.3]} 4. Bxd7+ {[%clk 0:02:54.5]} 4... Qxd7 {[%clk 0:02:56.2]} 5. c4
{[%clk 0:02:52.4]} 5... g6 {[%clk 0:02:54.9]} 6. d4 {[%clk 0:02:51.9]} 6... cxd4
{[%clk 0:02:54.6]} 7. Nxd4 {[%clk 0:02:52.8]} 7... Bg7 {[%clk 0:02:54.1]} 8. Nc3
{[%clk 0:02:52.8]} 8... Nc6 {[%clk 0:02:52.9]} 9. Be3 {[%clk 0:02:52.9]} 9...
Nf6 {[%clk 0:02:50.3]} 10. f3 {[%clk 0:02:52.6]} 10... O-O {[%clk 0:02:48]} 11.
O-O {[%clk 0:02:52.6]} 11... a6 {[%clk 0:02:44.8]} 12. a4 {[%clk 0:02:45.6]}
12... Rac8 {[%clk 0:02:38.5]} 13. b3 {[%clk 0:02:41.3]} 13... e6 {[%clk
0:02:16.8]} 14. Re1 {[%clk 0:02:26.8]} 14... d5 {[%clk 0:02:12.7]} 15. Nxc6
{[%clk 0:02:25.3]} 15... bxc6 {[%clk 0:02:11.3]} 16. e5 {[%clk 0:02:25.2]} 16...
Nh5 {[%clk 0:01:57]} 17. Bc5 {[%clk 0:02:12.7]} 17... Rfd8 {[%clk 0:01:51.3]}
18. Bd6 {[%clk 0:02:03.5]} 18... Bf8 {[%clk 0:01:43.7]} 19. c5 {[%clk
0:01:28.3]} 19... Bxd6 {[%clk 0:01:37]} 20. exd6 {[%clk 0:01:08.1]} 20... f6
{[%clk 0:01:34.1]} 21. b4 {[%clk 0:01:02.1]} 21... e5 {[%clk 0:01:26.7]} 22. b5
{[%clk 0:00:51]} 22... d4 {[%clk 0:01:20.4]} 23. Ne4 {[%clk 0:00:43.7]} 23... f5
{[%clk 0:01:02.9]} 24. Qb3+ {[%clk 0:00:37.5]} 24... Qf7 {[%clk 0:00:54.4]} 25.
Qxf7+ {[%clk 0:00:28.7]} 25... Kxf7 {[%clk 0:00:55.3]} 26. Ng5+ {[%clk
0:00:29.6]} 26... Kf6 {[%clk 0:00:50.1]} 27. Nxh7+ {[%clk 0:00:29.8]} 27... Kg7
{[%clk 0:00:50]} 28. Rxe5 {[%clk 0:00:19.8]} 28... Kxh7 {[%clk 0:00:25.1]} 29.
b6 {[%clk 0:00:15.6]} 29... Nf6 {[%clk 0:00:24.8]} 30. Rb1 {[%clk 0:00:12.2]}
30... d3 {[%clk 0:00:22.1]} 31. Rd1 {[%clk 0:00:11.3]} 31... Re8 {[%clk
0:00:18.5]} 32. Rxe8 {[%clk 0:00:10.7]} 32... Rxe8 {[%clk 0:00:18.4]} 33. Rxd3
{[%clk 0:00:11.2]} 33... Nd7 {[%clk 0:00:18.8]} 34. Rc3 {[%clk 0:00:10.6]} 34...
Kg7 {[%clk 0:00:18.3]} 35. f4 {[%clk 0:00:10.1]} 35... Kf6 {[%clk 0:00:18.3]}
36. Rc4 {[%clk 0:00:08.8]} 36... Ke6 {[%clk 0:00:18.6]} 37. Rb4 {[%clk
0:00:03.4]} 37... Kd5 {[%clk 0:00:18]} 38. b7 {[%clk 0:00:03.6]} 38... Rb8
{[%clk 0:00:18]} 39. a5 {[%clk 0:00:01.9]} 39... Kxc5 {[%clk 0:00:18.2]} 40. Rb2
{[%clk 0:00:02.4]} 40... Kxd6 {[%clk 0:00:18.6]} 41. Kf2 {[%clk 0:00:02.1]}
41... Nc5 {[%clk 0:00:18.5]} 42. Kg3 {[%clk 0:00:02.2]} 42... Rxb7 {[%clk
0:00:18.3]} 43. Rd2+ {[%clk 0:00:02.4]} 43... Ke6 {[%clk 0:00:17.6]} 44. Re2+
{[%clk 0:00:02.6]} 44... Kf6 {[%clk 0:00:17.6]} 45. Rc2 {[%clk 0:00:03.1]} 45...
Ne4+ {[%clk 0:00:17.6]} 46. Kf3 {[%clk 0:00:02.5]} 46... Rb3+ {[%clk 0:00:18.1]}
47. Ke2 {[%clk 0:00:02.8]} 47... Rc3 {[%clk 0:00:18.4]} 48. Rb2 {[%clk
0:00:02.7]} 48... Rc5 {[%clk 0:00:17.9]} 49. Rb6 {[%clk 0:00:03]} 49... Rxa5
{[%clk 0:00:17.4]} 50. Rxc6+ {[%clk 0:00:03.4]} 50... Kg7 {[%clk 0:00:17.8]} 51.
g3 {[%clk 0:00:03.1]} 51... Ra2+ {[%clk 0:00:17.8]} 52. Ke3 {[%clk 0:00:03.5]}
52... a5 {[%clk 0:00:18.3]} 53. Kd4 {[%clk 0:00:03.9]} 53... a4 {[%clk
0:00:18.5]} 54. Ke5 {[%clk 0:00:04.3]} 54... a3 {[%clk 0:00:18.2]} 55. Rc7+
{[%clk 0:00:04.7]} 55... Kh6 {[%clk 0:00:18.1]} 56. Ra7 {[%clk 0:00:05]} 56...
Ra1 {[%clk 0:00:17.4]} 57. h3 {[%clk 0:00:04.1]} 57... a2 {[%clk 0:00:17.6]} 58.
g4 {[%clk 0:00:03.3]} 58... fxg4 {[%clk 0:00:09.1]} 59. hxg4 {[%clk 0:00:04.2]}
59... Nf2 {[%clk 0:00:07]} 60. g5+ {[%clk 0:00:04]} 60... Kh5 {[%clk 0:00:07.3]}
61. Kf6 {[%clk 0:00:04.9]} 61... Nh3 {[%clk 0:00:06.5]} 62. Rh7+ {[%clk
0:00:03.7]} 62... Kg4 {[%clk 0:00:06.9]} 63. Ra7 {[%clk 0:00:04.5]} 63... Nxf4
{[%clk 0:00:07.1]} 64. Ra4 {[%clk 0:00:04.3]} 64... Kg3 {[%clk 0:00:06.9]} 65.
Ra3+ {[%clk 0:00:03.4]} 65... Kg4 {[%clk 0:00:06.6]} 66. Ra4 {[%clk 0:00:03.7]}
66... Kg3 {[%clk 0:00:07]} 67. Ra3+ {[%clk 0:00:04]} 67... Kf2 {[%clk
0:00:07.5]} 68. Ra4 {[%clk 0:00:04.4]} 68... Ke3 {[%clk 0:00:07.6]} 69. Ra3+
{[%clk 0:00:04]} 69... Nd3 {[%clk 0:00:08.1]} 70. Kxg6 {[%clk 0:00:04]} 70...
Kd4 {[%clk 0:00:08.5]} 71. Kg7 {[%clk 0:00:04.1]} 71... Kc4 {[%clk 0:00:08.9]}
72. g6 {[%clk 0:00:04.4]} 72... Nb4 {[%clk 0:00:08.4]} 73. Kg8 {[%clk
0:00:03.3]} 73... Rg1 {[%clk 0:00:08.5]} 74. Rxa2 {[%clk 0:00:02.8]} 74... Nxa2
{[%clk 0:00:08.3]} 75. g7 {[%clk 0:00:03.2]} 75... Nb4 {[%clk 0:00:08.4]} 76.
Kh8 {[%clk 0:00:03.7]} 76... Rh1+ {[%clk 0:00:07.2]} 77. Kg8 {[%clk 0:00:03.9]}
77... Nd5 {[%clk 0:00:08.1]} 78. Kf7 {[%clk 0:00:03.9]} 78... Rf1+ {[%clk
0:00:03.2]} 79. Ke6 {[%clk 0:00:03.6]} 79... Nf4+ {[%clk 0:00:02.9]} 80. Ke7
{[%clk 0:00:02.2]} 80... Nh5 {[%clk 0:00:03.3]} 81. g8=Q+ {[%clk 0:00:02.3]}
81... Kd4 {[%clk 0:00:02.4]} 82. Qg4+ {[%clk 0:00:02.6]} 82... Ke3 {[%clk
0:00:02.4]} 83. Qxh5 {[%clk 0:00:02.8]} 83... Rf4 {[%clk 0:00:02.8]} 84. Qe5+
{[%clk 0:00:02.9]} 84... Kf3 {[%clk 0:00:02.8]} 85. Kd6 {[%clk 0:00:03.8]} 85...
Re4 {[%clk 0:00:03]} 86. Qd5 {[%clk 0:00:03.9]} 86... Kf4 {[%clk 0:00:02.8]} 87.
Qa2 {[%clk 0:00:04.3]} 87... Re3 {[%clk 0:00:03]} 88. Qb2 {[%clk 0:00:04.4]}
88... Kf3 {[%clk 0:00:03.4]} 89. Qc2 {[%clk 0:00:04.5]} 89... Re4 {[%clk
0:00:03.9]} 90. Qd3+ {[%clk 0:00:04.3]} 90... Kf4 {[%clk 0:00:03.9]} 91. Qd1
{[%clk 0:00:05.2]} 91... Ke3 {[%clk 0:00:04]} 92. Kc5 {[%clk 0:00:04.4]} 92...
Rf4 {[%clk 0:00:03.6]} 93. Qc1+ {[%clk 0:00:04.2]} 93... Kf3 {[%clk 0:00:03.7]}
94. Qe1 {[%clk 0:00:04.1]} 94... Kg2 {[%clk 0:00:03.5]} 95. Kd5 {[%clk
0:00:03.8]} 95... Rf3 {[%clk 0:00:04.4]} 96. Ke4 {[%clk 0:00:03.8]} 96... Rg3
{[%clk 0:00:04.9]} 97. Kf4 {[%clk 0:00:03.1]} 97... Rf3+ {[%clk 0:00:05.3]} 98.
Ke4 {[%clk 0:00:03.4]} 98... Rh3 {[%clk 0:00:05.1]} 99. Qe2+ {[%clk 0:00:03.5]}
99... Kg1 {[%clk 0:00:05.2]} 100. Kf4 {[%clk 0:00:03.7]} 100... Rh2 {[%clk
0:00:04.4]} 101. Qe1+ {[%clk 0:00:03.5]} 101... Kg2 {[%clk 0:00:04.7]} 102. Kg4
{[%clk 0:00:04.2]} 102... Rh3 {[%clk 0:00:03.1]} 103. Qe2+ {[%clk 0:00:03.7]}
103... Kg1 {[%clk 0:00:03.5]} 104. Kxh3 {[%clk 0:00:04]} 1-0

[Event "*** Titled Tuesday Blitz"]
[Site "Chess.com"]
[Date "2020.11.03"]
[Round "4"]
[White "JosefineHeinemann"]
[Black "Omk124"]
[Result "1/2-1/2"]
[WhiteElo "2592"]
[BlackElo "2427"]
[TimeControl "180+1"]
[EndTime "10:44:41 PST"]
[Termination "Game drawn by agreement"]

1. e4 {[%clk 0:03:00.9]} 1... g6 {[%clk 0:02:59.6]} 2. d4 {[%clk 0:03:00.1]}
2... Bg7 {[%clk 0:03:00.1]} 3. Nc3 {[%clk 0:03:00.7]} 3... c6 {[%clk 0:02:59.9]}
4. Bc4 {[%clk 0:02:58.8]} 4... d6 {[%clk 0:02:59.4]} 5. Qe2 {[%clk 0:02:58]}
5... Nf6 {[%clk 0:02:58.9]} 6. Nf3 {[%clk 0:02:58.1]} 6... d5 {[%clk 0:02:56.6]}
7. exd5 {[%clk 0:02:55.8]} 7... cxd5 {[%clk 0:02:57.5]} 8. Bb5+ {[%clk
0:02:56.4]} 8... Nc6 {[%clk 0:02:57.7]} 9. Ne5 {[%clk 0:02:55.9]} 9... Qb6
{[%clk 0:02:39]} 10. Na4 {[%clk 0:02:35.4]} 10... Qc7 {[%clk 0:02:35.3]} 11. O-O
{[%clk 0:02:26.7]} 11... O-O {[%clk 0:02:34.5]} 12. Nxc6 {[%clk 0:02:24.2]}
12... bxc6 {[%clk 0:02:35.4]} 13. Bd3 {[%clk 0:02:23.8]} 13... Bg4 {[%clk
0:02:33.4]} 14. f3 {[%clk 0:02:16.7]} 14... Bf5 {[%clk 0:02:33.7]} 15. c3 {[%clk
0:02:16.2]} 15... Bxd3 {[%clk 0:02:32]} 16. Qxd3 {[%clk 0:02:17.1]} 16... e5
{[%clk 0:02:32.5]} 17. dxe5 {[%clk 0:02:13.7]} 17... Qxe5 {[%clk 0:02:33.4]} 18.
Bd2 {[%clk 0:02:11.5]} 18... Nd7 {[%clk 0:02:33.1]} 19. Rae1 {[%clk 0:02:08.9]}
19... Qd6 {[%clk 0:02:30.6]} 20. Be3 {[%clk 0:02:08.3]} 20... Rfe8 {[%clk
0:02:29.5]} 21. Bf2 {[%clk 0:02:07.4]} 21... Ne5 {[%clk 0:02:24.5]} 22. Qc2
{[%clk 0:01:58]} 22... a6 {[%clk 0:02:17.5]} 23. Nc5 {[%clk 0:01:57.7]} 23...
Nd7 {[%clk 0:02:09.4]} 24. Nxd7 {[%clk 0:01:53.9]} 24... Qxd7 {[%clk 0:02:10.3]}
25. Qd3 {[%clk 0:01:54.1]} 25... a5 {[%clk 0:02:06.3]} 26. g3 {[%clk 0:01:52.7]}
26... Qb7 {[%clk 0:02:05.2]} 27. b3 {[%clk 0:01:51.9]} 27... a4 {[%clk
0:02:05.3]} 28. bxa4 {[%clk 0:01:44.2]} 28... Rxe1 {[%clk 0:02:00.8]} 29. Rxe1
{[%clk 0:01:45.1]} 29... Bf8 {[%clk 0:02:01.2]} 30. c4 {[%clk 0:01:28.6]} 30...
Rxa4 {[%clk 0:01:50.8]} 31. cxd5 {[%clk 0:01:28.4]} 31... cxd5 {[%clk
0:01:51.7]} 32. Re2 {[%clk 0:01:18.9]} 32... Qc6 {[%clk 0:01:43.7]} 33. Qb3
{[%clk 0:01:14.7]} 33... Ra3 {[%clk 0:01:29.7]} 34. Qb8 {[%clk 0:01:11.9]} 34...
Ra8 {[%clk 0:01:29]} 35. Qb3 {[%clk 0:01:08.5]} 35... Ra3 {[%clk 0:01:28.1]} 36.
Qb8 {[%clk 0:01:06.1]} 36... Ra8 {[%clk 0:01:09.3]} 37. Qb6 {[%clk 0:01:04.2]}
37... Qxb6 {[%clk 0:00:49.3]} 38. Bxb6 {[%clk 0:01:05.1]} 38... Bg7 {[%clk
0:00:49.7]} 39. Rd2 {[%clk 0:01:01.8]} 39... d4 {[%clk 0:00:48.7]} 40. Kf2
{[%clk 0:00:50.4]} 40... Ra6 {[%clk 0:00:47.3]} 41. Bc5 {[%clk 0:00:47.5]} 41...
Ra5 {[%clk 0:00:46.5]} 42. Bb4 {[%clk 0:00:45.7]} 42... Rd5 {[%clk 0:00:41.3]}
43. a3 {[%clk 0:00:44.4]} 43... h5 {[%clk 0:00:40.1]} 44. Ke2 {[%clk 0:00:44.3]}
44... Re5+ {[%clk 0:00:39.4]} 45. Kf2 {[%clk 0:00:42.5]} 45... Re3 {[%clk
0:00:39.6]} 46. Bc5 {[%clk 0:00:41.6]} 46... Rc3 {[%clk 0:00:26.4]} 47. Bb4
{[%clk 0:00:31.8]} 47... Rb3 {[%clk 0:00:25.8]} 48. f4 {[%clk 0:00:32.3]} 48...
h4 {[%clk 0:00:24.7]} 49. Kg2 {[%clk 0:00:31.5]} 49... Bf6 {[%clk 0:00:20.6]}
50. Bc5 {[%clk 0:00:29.7]} 50... hxg3 {[%clk 0:00:20.9]} 51. hxg3 {[%clk
0:00:30.6]} 51... Rc3 {[%clk 0:00:21.4]} 52. Bd6 {[%clk 0:00:28.4]} 52... Kg7
{[%clk 0:00:21]} 53. a4 {[%clk 0:00:27.4]} 53... Rc6 {[%clk 0:00:20.5]} 54. Bb4
{[%clk 0:00:25.9]} 54... Rc4 {[%clk 0:00:20.7]} 55. Bd6 {[%clk 0:00:24.1]} 55...
Rxa4 {[%clk 0:00:20.9]} 56. Be5 {[%clk 0:00:25]} 56... Bxe5 {[%clk 0:00:21]} 57.
fxe5 {[%clk 0:00:25.9]} 57... Kf8 {[%clk 0:00:21.9]} 58. Kf3 {[%clk 0:00:26.3]}
58... Ke7 {[%clk 0:00:22.2]} 59. Ke4 {[%clk 0:00:27.2]} 59... Ra3 {[%clk
0:00:22.5]} 60. g4 {[%clk 0:00:26.5]} 60... Re3+ {[%clk 0:00:22.2]} 61. Kf4
{[%clk 0:00:26.5]} 61... Ke6 {[%clk 0:00:22]} 62. Rxd4 {[%clk 0:00:25.8]} 62...
Rxe5 {[%clk 0:00:22.7]} 63. Ra4 {[%clk 0:00:25.7]} 63... g5+ {[%clk 0:00:23.3]}
64. Kf3 {[%clk 0:00:25.6]} 64... Kf6 {[%clk 0:00:23.5]} 65. Ra6+ {[%clk
0:00:25.6]} 65... Re6 {[%clk 0:00:24]} 66. Ra5 {[%clk 0:00:26.2]} 66... Kg6
{[%clk 0:00:24.7]} 67. Rb5 {[%clk 0:00:24.1]} 67... f6 {[%clk 0:00:25.2]} 68.
Ra5 {[%clk 0:00:23.9]} 68... Rd6 {[%clk 0:00:25.5]} 69. Rb5 {[%clk 0:00:24]}
69... Rd3+ {[%clk 0:00:25.8]} 70. Kg2 {[%clk 0:00:24.6]} 70... Kf7 {[%clk
0:00:25.4]} 71. Rb6 {[%clk 0:00:25.1]} 71... Re3 {[%clk 0:00:24.9]} 72. Ra6
{[%clk 0:00:25]} 72... Re6 {[%clk 0:00:24.3]} 73. Ra5 {[%clk 0:00:25.7]} 73...
Rb6 {[%clk 0:00:21.5]} 74. Kf3 {[%clk 0:00:25.3]} 74... Ke6 {[%clk 0:00:21.9]}
75. Rc5 {[%clk 0:00:25.3]} 75... Rb3+ {[%clk 0:00:21.8]} 76. Kg2 {[%clk
0:00:25]} 76... Re3 {[%clk 0:00:21.8]} 77. Ra5 {[%clk 0:00:24.9]} 77... Re4
{[%clk 0:00:20.3]} 78. Kf3 {[%clk 0:00:24.4]} 78... Rf4+ {[%clk 0:00:20.5]} 79.
Kg3 {[%clk 0:00:23.7]} 79... Rd4 {[%clk 0:00:21.2]} 80. Kf3 {[%clk 0:00:22.7]}
80... Rd5 {[%clk 0:00:21.6]} 81. Ra6+ {[%clk 0:00:22.8]} 81... Ke5 {[%clk
0:00:22]} 82. Ra3 {[%clk 0:00:23.1]} 82... Rd4 {[%clk 0:00:21.6]} 83. Ra5+
{[%clk 0:00:22.7]} 83... Rd5 {[%clk 0:00:20.1]} 84. Ra3 {[%clk 0:00:23.3]} 84...
Kd4 {[%clk 0:00:20.6]} 85. Kg3 {[%clk 0:00:21.9]} 85... Re5 {[%clk 0:00:20.6]}
86. Kf3 {[%clk 0:00:21.1]} 86... Rc5 {[%clk 0:00:20.7]} 87. Ra6 {[%clk
0:00:20.2]} 87... Rc3+ {[%clk 0:00:20.4]} 88. Kg2 {[%clk 0:00:20.2]} 88... Rc2+
{[%clk 0:00:19.1]} 89. Kf3 {[%clk 0:00:20]} 89... Rc1 {[%clk 0:00:18.4]} 90.
Ra4+ {[%clk 0:00:19.1]} 90... Ke5 {[%clk 0:00:18.6]} 91. Ra5+ {[%clk 0:00:19.2]}
91... Ke6 {[%clk 0:00:18.6]} 92. Kg3 {[%clk 0:00:17.9]} 92... Rc3+ {[%clk
0:00:18.1]} 93. Kg2 {[%clk 0:00:17.6]} 93... Re3 {[%clk 0:00:18]} 94. Kf2 {[%clk
0:00:17.6]} 94... Re4 {[%clk 0:00:18.4]} 95. Kf3 {[%clk 0:00:17.1]} 95... Rf4+
{[%clk 0:00:18.9]} 96. Kg3 {[%clk 0:00:17.5]} 96... Kf7 {[%clk 0:00:19.6]} 97.
Ra6 {[%clk 0:00:17.3]} 97... Kg6 {[%clk 0:00:20.1]} 98. Ra5 {[%clk 0:00:17.8]}
98... f5 {[%clk 0:00:19]} 99. Ra6+ {[%clk 0:00:16.6]} 99... Kg7 {[%clk
0:00:19.1]} 100. gxf5 {[%clk 0:00:17.5]} 100... Rxf5 {[%clk 0:00:20]} 101. Kg4
{[%clk 0:00:18]} 101... Rb5 {[%clk 0:00:20.6]} 102. Rc6 {[%clk 0:00:18.2]}
102... Kf7 {[%clk 0:00:20.7]} 103. Ra6 {[%clk 0:00:18.3]} 103... Rc5 {[%clk
0:00:20.6]} 104. Rb6 {[%clk 0:00:18.5]} 104... Rd5 {[%clk 0:00:21.1]} 105. Ra6
{[%clk 0:00:18.8]} 105... Rb5 {[%clk 0:00:21.4]} 106. Rc6 {[%clk 0:00:18.5]}
106... Ke7 {[%clk 0:00:20.8]} 107. Rg6 {[%clk 0:00:18]} 107... Kf7 {[%clk
0:00:20.8]} 108. Rxg5 {[%clk 0:00:18.5]} 108... Rb1 {[%clk 0:00:21.3]} 109. Rf5+
{[%clk 0:00:18.2]} 1/2-1/2

[Event "*** Titled Tuesday Blitz"]
[Site "Chess.com"]
[Date "2020.11.03"]
[Round "4"]
[White "PavelShkapenko"]
[Black "enriquetejedor"]
[Result "1/2-1/2"]
[WhiteElo "2640"]
[BlackElo "2481"]
[TimeControl "180+1"]
[EndTime "10:45:18 PST"]
[Termination "Game drawn by stalemate"]

1. e4 {[%clk 0:03:00.9]} 1... c5 {[%clk 0:02:55.4]} 2. c3 {[%clk 0:03:00.5]}
2... Nf6 {[%clk 0:02:54.6]} 3. e5 {[%clk 0:03:00.2]} 3... Nd5 {[%clk 0:02:55.1]}
4. d4 {[%clk 0:03:00.7]} 4... cxd4 {[%clk 0:02:54.8]} 5. cxd4 {[%clk 0:03:01]}
5... e6 {[%clk 0:02:55.1]} 6. Nc3 {[%clk 0:03:01]} 6... Nxc3 {[%clk 0:02:55.3]}
7. bxc3 {[%clk 0:03:01.9]} 7... d6 {[%clk 0:02:56.2]} 8. f4 {[%clk 0:03:01.8]}
8... b6 {[%clk 0:02:20.7]} 9. Nf3 {[%clk 0:02:57.8]} 9... Be7 {[%clk 0:02:18.2]}
10. Bd3 {[%clk 0:02:57.3]} 10... O-O {[%clk 0:02:16]} 11. Qe2 {[%clk 0:02:55.6]}
11... d5 {[%clk 0:02:08.2]} 12. O-O {[%clk 0:02:53.6]} 12... a5 {[%clk
0:02:07.5]} 13. a4 {[%clk 0:02:14.9]} 13... Qc7 {[%clk 0:02:00.2]} 14. Ba3
{[%clk 0:02:13.5]} 14... Bxa3 {[%clk 0:01:56.5]} 15. Rxa3 {[%clk 0:02:13.2]}
15... Ba6 {[%clk 0:01:57.3]} 16. Ng5 {[%clk 0:02:12.4]} 16... h6 {[%clk
0:01:32.2]} 17. Nh3 {[%clk 0:02:08.6]} 17... Bxd3 {[%clk 0:01:25.2]} 18. Qxd3
{[%clk 0:02:07.8]} 18... f5 {[%clk 0:01:23.3]} 19. exf6 {[%clk 0:02:05]} 19...
Rxf6 {[%clk 0:01:21.5]} 20. f5 {[%clk 0:02:01.7]} 20... Nc6 {[%clk 0:01:04.3]}
21. fxe6 {[%clk 0:01:39.1]} 21... Rxe6 {[%clk 0:00:52.4]} 22. Qf5 {[%clk
0:01:31.9]} 22... Qd7 {[%clk 0:00:47.7]} 23. Rb3 {[%clk 0:01:12]} 23... Rd8
{[%clk 0:00:35.3]} 24. Nf4 {[%clk 0:01:02]} 24... Re3 {[%clk 0:00:21.6]} 25.
Qxd7 {[%clk 0:00:59.5]} 25... Rxd7 {[%clk 0:00:21.2]} 26. Rxb6 {[%clk
0:00:58.5]} 26... Rxc3 {[%clk 0:00:20.8]} 27. Ne6 {[%clk 0:00:49.1]} 27... Re7
{[%clk 0:00:15.4]} 28. Nf4 {[%clk 0:00:41.3]} 28... Nxd4 {[%clk 0:00:04.6]} 29.
Nxd5 {[%clk 0:00:31.5]} 29... Ne2+ {[%clk 0:00:04.9]} 30. Kh1 {[%clk 0:00:28.4]}
30... Rf7 {[%clk 0:00:04.5]} 31. Rb8+ {[%clk 0:00:17.5]} 31... Kh7 {[%clk
0:00:03.9]} 32. Re1 {[%clk 0:00:17.4]} 32... Rc1 {[%clk 0:00:02.6]} 33. Rxc1
{[%clk 0:00:17.4]} 33... Nxc1 {[%clk 0:00:03.5]} 34. h3 {[%clk 0:00:17.4]} 34...
Nd3 {[%clk 0:00:03]} 35. Rb5 {[%clk 0:00:16.9]} 35... Rf1+ {[%clk 0:00:02.8]}
36. Kh2 {[%clk 0:00:16.8]} 36... Ra1 {[%clk 0:00:02.9]} 37. Rxa5 {[%clk
0:00:16.8]} 37... Nb2 {[%clk 0:00:03.3]} 38. Nb6 {[%clk 0:00:17.1]} 38... Ra2
{[%clk 0:00:02.5]} 39. Ra8 {[%clk 0:00:16]} 39... Nd3 {[%clk 0:00:02.3]} 40. Kg3
{[%clk 0:00:16.1]} 40... Ne1 {[%clk 0:00:02.7]} 41. a5 {[%clk 0:00:16.5]} 41...
Rxg2+ {[%clk 0:00:03.5]} 42. Kf4 {[%clk 0:00:16.7]} 42... Rf2+ {[%clk
0:00:03.1]} 43. Ke3 {[%clk 0:00:16.6]} 43... Rh2 {[%clk 0:00:02.4]} 44. a6
{[%clk 0:00:16.1]} 44... Rxh3+ {[%clk 0:00:02.6]} 45. Ke2 {[%clk 0:00:15.7]}
45... Nd3 {[%clk 0:00:01.7]} 46. a7 {[%clk 0:00:15.2]} 46... Nf4+ {[%clk
0:00:01.9]} 47. Kd2 {[%clk 0:00:15.1]} 47... Rh2+ {[%clk 0:00:01.6]} 48. Kc3
{[%clk 0:00:14.9]} 48... Rh3+ {[%clk 0:00:01.6]} 49. Kb4 {[%clk 0:00:14.4]}
49... Nd3+ {[%clk 0:00:02]} 50. Kb5 {[%clk 0:00:13.6]} 50... Rh5+ {[%clk
0:00:02.3]} 51. Kc4 {[%clk 0:00:13.6]} 51... Ne5+ {[%clk 0:00:02.3]} 52. Kc3
{[%clk 0:00:13.3]} 52... Rh3+ {[%clk 0:00:02.1]} 53. Kd4 {[%clk 0:00:13.3]}
53... Nc6+ {[%clk 0:00:02.2]} 54. Kd5 {[%clk 0:00:13.6]} 54... Nxa7 {[%clk
0:00:03.1]} 55. Rxa7 {[%clk 0:00:13.2]} 55... Re3 {[%clk 0:00:03.4]} 56. Nd7
{[%clk 0:00:12.6]} 56... h5 {[%clk 0:00:02.9]} 57. Ne5 {[%clk 0:00:12.9]} 57...
h4 {[%clk 0:00:02.5]} 58. Kd4 {[%clk 0:00:12.6]} 58... Re2 {[%clk 0:00:02.8]}
59. Nf3 {[%clk 0:00:12.6]} 59... h3 {[%clk 0:00:02.3]} 60. Ng5+ {[%clk
0:00:12.4]} 60... Kh6 {[%clk 0:00:02.6]} 61. Nxh3 {[%clk 0:00:12.8]} 61... Rh2
{[%clk 0:00:02.9]} 62. Nf4 {[%clk 0:00:12.6]} 62... g5 {[%clk 0:00:03.3]} 63.
Nd5 {[%clk 0:00:12]} 63... g4 {[%clk 0:00:02.7]} 64. Ke4 {[%clk 0:00:12.2]}
64... g3 {[%clk 0:00:02.8]} 65. Kf3 {[%clk 0:00:12.1]} 65... Rd2 {[%clk
0:00:02.5]} 66. Ne3 {[%clk 0:00:11.6]} 66... g2 {[%clk 0:00:02.4]} 67. Nxg2
{[%clk 0:00:11.4]} 67... Rd4 {[%clk 0:00:02.5]} 68. Nf4 {[%clk 0:00:11.4]} 68...
Rb4 {[%clk 0:00:02.6]} 69. Ra6+ {[%clk 0:00:11.6]} 69... Kg7 {[%clk 0:00:02.5]}
70. Kg4 {[%clk 0:00:11.5]} 70... Rc4 {[%clk 0:00:02.6]} 71. Kf5 {[%clk
0:00:10.3]} 71... Kf8 {[%clk 0:00:02.7]} 72. Ra7 {[%clk 0:00:08.4]} 72... Ke8
{[%clk 0:00:02.7]} 73. Nd5 {[%clk 0:00:06.4]} 73... Rc1 {[%clk 0:00:02.6]} 74.
Ke5 {[%clk 0:00:06.3]} 74... Re1+ {[%clk 0:00:02.8]} 75. Kd6 {[%clk 0:00:06.6]}
75... Kf8 {[%clk 0:00:03.2]} 76. Nf4 {[%clk 0:00:06.7]} 76... Rd1+ {[%clk
0:00:03.3]} 77. Ke6 {[%clk 0:00:06.5]} 77... Re1+ {[%clk 0:00:03.6]} 78. Kf6
{[%clk 0:00:06.5]} 78... Ke8 {[%clk 0:00:03.5]} 79. Ne6 {[%clk 0:00:06.2]} 79...
Rf1+ {[%clk 0:00:04]} 80. Ke5 {[%clk 0:00:06.5]} 80... Re1+ {[%clk 0:00:04.3]}
81. Kd5 {[%clk 0:00:06.7]} 81... Rd1+ {[%clk 0:00:04.7]} 82. Nd4 {[%clk
0:00:06.7]} 82... Rd2 {[%clk 0:00:04.2]} 83. Kc5 {[%clk 0:00:06.7]} 83... Kf8
{[%clk 0:00:03.7]} 84. Ra4 {[%clk 0:00:06]} 84... Kf7 {[%clk 0:00:03.5]} 85. Ra6
{[%clk 0:00:05.8]} 85... Rd1 {[%clk 0:00:03.2]} 86. Nf5 {[%clk 0:00:06]} 86...
Rf1 {[%clk 0:00:02.9]} 87. Nh6+ {[%clk 0:00:05.4]} 87... Kg7 {[%clk 0:00:03]}
88. Ng4 {[%clk 0:00:05.4]} 88... Rf5+ {[%clk 0:00:03.1]} 89. Kd6 {[%clk
0:00:04.7]} 89... Rg5 {[%clk 0:00:02.7]} 90. Ra7+ {[%clk 0:00:04.5]} 90... Kg6
{[%clk 0:00:02.8]} 91. Ne5+ {[%clk 0:00:05]} 91... Kf5 {[%clk 0:00:03.1]} 92.
Rf7+ {[%clk 0:00:05.1]} 92... Ke4 {[%clk 0:00:03.5]} 93. Re7 {[%clk 0:00:03.7]}
93... Rg2 {[%clk 0:00:03.2]} 94. Nc6+ {[%clk 0:00:04.1]} 94... Kd3 {[%clk
0:00:03.4]} 95. Kd5 {[%clk 0:00:04.5]} 95... Rg5+ {[%clk 0:00:03]} 96. Ne5+
{[%clk 0:00:05]} 96... Kd2 {[%clk 0:00:02.8]} 97. Rf7 {[%clk 0:00:05.5]} 97...
Rg8 {[%clk 0:00:03.1]} 98. Rf4 {[%clk 0:00:05.7]} 98... Ke3 {[%clk 0:00:03.4]}
99. Rf3+ {[%clk 0:00:05.2]} 99... Ke2 {[%clk 0:00:03.7]} 100. Rb3 {[%clk
0:00:05.7]} 100... Rd8+ {[%clk 0:00:03.5]} 101. Ke4 {[%clk 0:00:06.1]} 101...
Rd2 {[%clk 0:00:03.7]} 102. Re3+ {[%clk 0:00:06.1]} 102... Kd1 {[%clk
0:00:04.1]} 103. Nf3 {[%clk 0:00:06.4]} 103... Rd8 {[%clk 0:00:03.6]} 104. Ra3
{[%clk 0:00:05.9]} 104... Kc2 {[%clk 0:00:03.7]} 105. Nd4+ {[%clk 0:00:05.2]}
105... Kb2 {[%clk 0:00:04]} 106. Rb3+ {[%clk 0:00:05.6]} 106... Ka2 {[%clk
0:00:03.5]} 107. Rb6 {[%clk 0:00:05.5]} 107... Rh8 {[%clk 0:00:03.3]} 108. Ne2
{[%clk 0:00:05.5]} 108... Re8+ {[%clk 0:00:03]} 109. Kd3 {[%clk 0:00:05.7]}
109... Ka3 {[%clk 0:00:03.4]} 110. Nc3 {[%clk 0:00:05.2]} 110... Rd8+ {[%clk
0:00:03.3]} 111. Kc2 {[%clk 0:00:05.6]} 111... Rd2+ {[%clk 0:00:03.1]} 112. Kc1
{[%clk 0:00:05.4]} 112... Rc2+ {[%clk 0:00:03.1]} 113. Kxc2 {[%clk 0:00:05.8]}
1/2-1/2